Cogmind - Beta 13 @@@ ROGUE MODE // 2024.07.22 @ 13:54:01 Player: Sgt. SmokeWeed Result: Destroyed by H-61 Shepherd via exploding Nuclear Reactor Performance ------------- Evolutions (2) 1000 Regions Visited (5) 1000 Robots Destroyed (16) 80 Value Destroyed (450) 450 Prototype IDs (27) 540 Alien Tech Used (0) 0 Bonus (300) 300 TOTAL SCORE: 3370 Bonus ------- Aligned with FarCom 300 Cogmind --------- Core Integrity 0/550 Matter 289/300 Energy 99/100 System Corruption 0% Temperature Cool (0) Movement Core (50) Location -8/Materials Parts ------- > --- POWER (1) -------- (None) > --- PROPULSION (2) --- (None) > --- UTILITY (4) ------ 0b10 Alert Chip > --- WEAPON (4) ------- (None) > --- INVENTORY (5) ---- Light Nuclear Core Heat Sink Improved Melee Analysis Suite Peak State ------------ > --- POWER ------------ Nuclear Core > --- PROPULSION ------- Aluminum Leg Aluminum Leg > --- UTILITY ---------- Improved Heat Sink 0b10 Alert Chip Improved Light Armor Plating System Shield > --- WEAPON ----------- Heavy EM Shotgun Heavy EM Shotgun Heavy Particle Cannon Rocket Launcher > --- INVENTORY -------- Light Nuclear Core Heat Sink Heat Sink Improved Melee Analysis Suite [Rating: 33] Favorites ----------- Power Light Nuclear Core Engine Ion Engine Power Core Light Nuclear Core Propulsion Aluminum Leg Leg Aluminum Leg Utility 0b10 Alert Chip Device Improved Heat Sink Processor 0b10 Alert Chip Hackware System Shield Protection Improved Light Armor Plating Weapon Assault Rifle Energy Gun Field Laser Energy Cannon Heavy Particle Cannon Ballistic Gun Assault Rifle Launcher Rocket Launcher Build | -11 -10 -10 -10 -9 -8 ------- Run | Yrd Mat Min Exi Min Mat Slots Evolved 4 | . . . . . 4 Power . | . . . . . . Propulsion . | . . . . . . Utility 2 | . . . . . 2 Weapon 2 | . . . . . 2 Parts Attached 19 | 5 2 . 1 1 10 Power 3 | 1 1 . . . 1 Engine 1 | 1 . . . . . Core 2 | . 1 . . . 1 Reactor . | . . . . . . Propulsion 2 | 2 . . . . . Treads . | . . . . . . Leg 2 | 2 . . . . . Wheel . | . . . . . . Hover . | . . . . . . Flight . | . . . . . . Utility 5 | . . . 1 . 4 Device 2 | . . . . . 2 Storage . | . . . . . . Processor 1 | . . . 1 . . Hackware 1 | . . . . . 1 Protection 1 | . . . . . 1 Artifact . | . . . . . . Weapon 9 | 2 1 . . 1 5 Energy Gun 5 | 1 . . . . 4 Energy Cannon 1 | . . . . . 1 Ballistic Gun 2 | 1 1 . . . . Ballistic Cannon . | . . . . . . Launcher 1 | . . . . 1 . Special Weapon . | . . . . . . Impact Weapon . | . . . . . . Slashing Weapon . | . . . . . . Piercing Weapon . | . . . . . . Special Melee Weapon . | . . . . . . Unidentified Prototypes 2 | . . . . . 2 Parts Lost 11 | . . . . . 11 Power 1 | . . . . . 1 Propulsion 2 | . . . . . 2 Utility 4 | . . . . . 4 Weapon 4 | . . . . . 4 Highest Loss Streak 11 | . . . . . 11 To Critical Strikes . | . . . . . . Average Slot Usage (%) 78 | . 71 71 77 85 82 Engine 2 | . 12 . . . . Core 10 | . 1 14 14 14 8 Leg 24 | . 28 28 28 28 16 Device 2 | . . . . . 8 Processor 7 | . . . 6 14 9 Hackware 1 | . . . . . 6 Protection 1 | . . . . . 3 Energy Gun 2 | . 4 . . . 7 Energy Cannon 2 | . . . . . 7 Ballistic Gun 18 | . 23 28 28 15 6 Launcher 4 | . . . . 12 8 Naked Turns . | . . . . . . Heaviest Build 29 | 8 8 8 8 11 29 Greatest Support 20 | 20 20 20 20 20 20 Greatest Overweight (x) 3 | . . . . . 3 Average Overweight (x) . | . . . . . . Largest Inventory Capacity 5 | 5 5 5 5 5 5 Average Capacity 5 | 5 5 5 5 5 5 Most Carried 4 | . 3 3 3 3 4 Average Carried 2 | . . 3 3 3 3 Final Capacity 5 | 5 5 5 5 5 5 Final Carried 3 | . 3 3 3 3 3 Class Distribution -------------------- 75% | Mutant 24% | Skirmisher Dominant Class ---------------- Mutant | -10/Materials Mutant | -10/Mines Mutant | -10/Exiles Mutant | -9/Mines Skirmisher | -8/Materials Resources | -11 -10 -10 -10 -9 -8 ----------- Run | Yrd Mat Min Exi Min Mat Matter Collected 407 | 229 46 10 . 18 104 Remotely . | . . . . . . Salvage Created 619 | . 204 . . . 415 Parts 43 | . 14 . . . 29 Haulers Intercepted 2 | . . . . . 2 Recyclers Shooed 1 | . 1 . . . . Parts Field Recycled . | . . . . . . Retrieved Matter . | . . . . . . Parts Self-Destructed . | . . . . . . Prevented . | . . . . . . Kills | -11 -10 -10 -10 -9 -8 ------- Run | Yrd Mat Min Exi Min Mat Combat Hostiles Destroyed 9 | . 4 . . . 5 Guns 4 | . 3 . . . 1 Cannons 2 | . . . . . 2 AOE 3 | . 1 . . . 2 Classes Destroyed 8 | . 2 . . . 6 Worker 1 | . . . . . 1 Builder 2 | . . . . . 2 Tunneler 1 | . . . . . 1 Hauler 2 | . . . . . 2 Watcher 1 | . 1 . . . . Grunt 6 | . 4 . . . 2 Sentry 1 | . . . . . 1 Specialist 2 | . . . . . 2 Best Kill Streak 6 | . 3 . . . 6 Combat Bots Only 2 | . 2 . . . 2 Max Kills in Single Turn 2 | . 2 . . . 2 Gunslinging . | . . . . . . Exploded 1 | . 1 . . . 1 Melee . | . . . . . . Uniques/NPCs Destroyed . | . . . . . . Combat | -11 -10 -10 -10 -9 -8 -------- Run | Yrd Mat Min Exi Min Mat Hostile Shots Fired 64 | . 13 6 . . 45 Missed 18 | . 3 1 . . 14 Damage Taken 1457 | . 115 61 . . 1281 Core 619 | . 23 27 . . 569 Absorbed by Shields . | . . . . . . Core Remaining (%) 90 | 100 . . . 80 . Volleys Fired 18 | . 10 . . . 8 Largest 4 | . 2 . . . 4 Hottest 208 | . 60 . . . 208 Shots Fired 45 | . 20 . . . 25 Gun 32 | . 20 . . . 12 Cannon 7 | . . . . . 7 Launcher 6 | . . . . . 6 Special . | . . . . . . Kinetic 19 | . 14 . . . 5 Thermal 12 | . . . . . 12 Explosive 6 | . . . . . 6 Electromagnetic 8 | . 6 . . . 2 Robot Hit Streak 9 | . 4 . . . 9 Robot Miss Streak 3 | . 3 . . . 3 Penetration Max . | . . . . . . Secondary Targets 1 | . 1 . . . . Max Gunslinging Chain 1 | . 1 . . . . Shots Hit Robots 24 | . 13 . . . 11 Core Hits 28 | . 8 . . . 20 Critical Kills . | . . . . . . Critical Parts Destroyed . | . . . . . . Critical Strikes 1 | . . . . . 1 Burn 1 | . . . . . 1 Melee Attacks . | . . . . . . Impact . | . . . . . . Slashing . | . . . . . . Piercing . | . . . . . . Sneak Attacks . | . . . . . . Combat Hostiles . | . . . . . . Follow-up Attacks . | . . . . . . Damage Inflicted 962 | 1 230 . . 4 727 Guns 240 | . 148 . . . 92 Cannons 150 | . . . . . 150 Explosions 561 | . 81 . . . 480 Melee . | . . . . . . Ramming 11 | 1 1 . . 4 5 Kinetic 123 | . 93 . . . 30 Thermal 282 | . 81 . . . 201 Explosive 480 | . . . . . 480 Electromagnetic 66 | . 55 . . . 11 Impact . | . . . . . . Slashing . | . . . . . . Piercing . | . . . . . . Highest Corruption . | . . . . . . Average Corruption . | . . . . . . Corruption Purged . | . . . . . . Corruption Blocked . | . . . . . . Overload Shots . | . . . . . . Overflow Damage . | . . . . . . Projectiles . | . . . . . . Explosions . | . . . . . . Melee . | . . . . . . Knockbacks . | . . . . . . Impact . | . . . . . . Kinetic . | . . . . . . Secondary . | . . . . . . Self-Inflicted Damage 1 | . . . . . 1 Shots 1 | . . . . . 1 Rammed 1 | . . . . . 1 Targets Rammed 6 | 1 1 . . 1 3 Kicked 5 | 1 1 . . 1 2 Crushed . | . . . . . . Highest Temperature 99 | . 94 . . . 99 Average Temperature 46 | . 41 . . . 51 Received Heat Transfer 216 | . 81 . . . 135 Siege Activations . | . . . . . . Robots Corrupted . | . . . . . . Combat Hostiles . | . . . . . . Parts Fried . | . . . . . . Impact Corruptions . | . . . . . . Robots Melted . | . . . . . . Combat Hostiles . | . . . . . . Parts Melted 3 | . . . . . 3 Heat Transferred 507 | . 100 . . . 407 Parts Sabotaged . | . . . . . . Parts Stolen . | . . . . . . Parts Stripped . | . . . . . . Power Chain Reactions 1 | . 1 . . . . Alert | -11 -10 -10 -10 -9 -8 ------- Run | Yrd Mat Min Exi Min Mat Peak Influence 187 | . 143 55 . . 187 Initial 55 | . . 55 . . . Average 43 | . 87 55 . . 52 Maximum Alert Level . | . . . . . . Low Security (%) 100 | 100 100 100 . 100 100 Level 1 . | . . . . . . Level 2 . | . . . . . . Level 3 . | . . . . . . Level 4 . | . . . . . . Level 5 . | . . . . . . High Security . | . . . . . . Max Security . | . . . . . . Squads Dispatched 3 | . . . . . 3 Investigation . | . . . . . . Extermination . | . . . . . . Reinforcement 3 | . . . . . 3 Assault . | . . . . . . Garrison . | . . . . . . Intercept . | . . . . . . Searches Triggered . | . . . . . . Construction Impeded . | . . . . . . Haulers Reinforced . | . . . . . . Active Scanning Responses . | . . . . . . Cargo Convoy Interrupts . | . . . . . . Stealth | -11 -10 -10 -10 -9 -8 --------- Run | Yrd Mat Min Exi Min Mat Distress Signals 2 | . 1 1 . . . Communications Jammed . | . . . . . . Distress Signals . | . . . . . . Times Spotted 19 | . 5 1 . . 13 Peak Tracking Total 8 | . 3 1 . . 8 Tactical Retreats . | . . . . . . Traps | -11 -10 -10 -10 -9 -8 ------- Run | Yrd Mat Min Exi Min Mat Traps Triggered . | . . . . . . Indirectly . | . . . . . . Trap Hack Attempts . | . . . . . . Triggered . | . . . . . . Disarmed . | . . . . . . Reprogrammed . | . . . . . . Reused . | . . . . . . Traps Extracted . | . . . . . . Installed . | . . . . . . Triggered . | . . . . . . Machines | -11 -10 -10 -10 -9 -8 ---------- Run | Yrd Mat Min Exi Min Mat Machines Disabled 1 | . 1 . . . . Max in Single Turn 1 | . 1 . . . . Machines Repaired . | . . . . . . Machines Dismantled . | . . . . . . Machines Sabotaged . | . . . . . . Overloaded Fab Kills . | . . . . . . Hacking | -11 -10 -10 -10 -9 -8 --------- Run | Yrd Mat Min Exi Min Mat Machines Accessed 4 | . 1 . 1 . 2 Terminals 3 | . 1 . . . 2 Fabricators . | . . . . . . Repair Stations . | . . . . . . Recycling Units . | . . . . . . Scanalyzers . | . . . . . . Garrison Access . | . . . . . . Total Hacks 10 | . 2 . 1 . 7 Successful 7 | . 1 . 1 . 5 Failed 3 | . 1 . . . 2 Catastrophic 1 | . . . . . 1 Database Lockouts . | . . . . . . Manual 5 | . . . 1 . 4 Terminals 9 | . 2 . . . 7 Fabricators . | . . . . . . Repair Stations . | . . . . . . Recycling Units . | . . . . . . Scanalyzers . | . . . . . . Garrison Access . | . . . . . . Terminal Hacks 7 | . 1 . 1 . 5 Robot Analysis 1 | . . . . . 1 Prototype ID Bank 1 | . . . . . 1 Emergency Access Points 1 | . . . . . 1 Alert Level 1 | . . . . . 1 Locate Traps 1 | . 1 . . . . Registered Components 1 | . . . . . 1 Derelict Proto ID Bank 1 | . . . 1 . . Fabricator Hacks . | . . . . . . Repair Station Hacks . | . . . . . . Recycling Unit Hacks . | . . . . . . Scanalyzer . | . . . . . . Garrison Access Hacks . | . . . . . . Unauthorized Hacks . | . . . . . . Terminals . | . . . . . . Fabricators . | . . . . . . Repair Stations . | . . . . . . Recycling Units . | . . . . . . Scanalyzers . | . . . . . . Garrison Access . | . . . . . . Data Cores Recovered . | . . . . . . Used . | . . . . . . Hacking Detections 2 | . 1 . . . 1 Full Trace Events . | . . . . . . Feedback Events . | . . . . . . Feedback Blocked . | . . . . . . Robot Schematics Acquired . | . . . . . . Robots Built . | . . . . . . Authchips . | . . . . . . Time . | . . . . . . Total Robot Build Rating . | . . . . . . Part Schematics Acquired . | . . . . . . Parts Built . | . . . . . . Authchips . | . . . . . . Time . | . . . . . . Total Part Build Rating . | . . . . . . Parts Repaired . | . . . . . . Time . | . . . . . . Parts Recycled . | . . . . . . Recycled Matter . | . . . . . . Retrieved Matter . | . . . . . . Retrieved Components . | . . . . . . Parts Scanalyzed . | . . . . . . Part Schematics Acquired . | . . . . . . Parts Damaged . | . . . . . . Bothacking | -11 -10 -10 -10 -9 -8 ------------ Run | Yrd Mat Min Exi Min Mat Used RIF Installer . | . . . . . . Robots Hacked . | . . . . . . Non-combat . | . . . . . . Combat . | . . . . . . Robot Hacks Applied . | . . . . . . Relay Couplers Released . | . . . . . . Fabnet Peak Effective % . | . . . . . . Robots Rewired . | . . . . . . Allies Hacked . | . . . . . . Hacks Repelled . | . . . . . . Allies | -11 -10 -10 -10 -9 -8 -------- Run | Yrd Mat Min Exi Min Mat Total Allies . | . . . . . . Largest Group . | . . . . . . Highest-Rated Group . | . . . . . . Highest-Rated Ally . | . . . . . . Total Orders . | . . . . . . Ally Attacks . | . . . . . . Total Damage . | . . . . . . Kills . | . . . . . . Allies Corrupted . | . . . . . . Allies Melted . | . . . . . . Intel | -11 -10 -10 -10 -9 -8 ------- Run | Yrd Mat Min Exi Min Mat Robot Analysis Total 1 | . . . . . 1 Derelict Logs Recovered 2 | . . 1 . 1 . Drone Launches . | . . . . . . Drone Recoveries . | . . . . . . Exploration | -11 -10 -10 -10 -9 -8 ------------- Run | Yrd Mat Min Exi Min Mat Turns Passed 1313 | 66 208 111 322 250 356 Spaces Moved 949 | 51 144 93 268 201 192 Core 26 | 5 . . . . 21 Treads . | . . . . . . Legs 923 | 46 144 93 268 201 171 Wheels . | . . . . . . Hover . | . . . . . . Flight . | . . . . . . Fastest Speed 50 | 50 120 120 120 120 50 Average Speed 126 | 113 120 120 120 120 153 Slowest Speed 260 | 120 120 120 120 120 260 Overloaded Moves . | . . . . . . Propulsion Burnouts . | . . . . . . Robots Hopped . | . . . . . . Cave-ins Triggered . | . . . . . . Exploration Rate (%) 31 | 3 35 26 61 40 22 Regions Visited 5 Branch Regions 3 Pre-discovered Areas . | . . . . . . Known Exits Taken . | . . . . . . Unknown Exits Taken 5 | 1 1 1 1 1 . Scrap Searched 1 | . . . . 1 . Spaces Dug . | . . . . . . Terrain Destroyed 42 | . 2 . . . 40 Melee . | . . . . . . Projectile . | . . . . . . AOE 42 | . 2 . . . 40 Terrain Rammed . | . . . . . . Walls Destroyed . | . . . . . . Machines Disabled . | . . . . . . Actions | -11 -10 -10 -10 -9 -8 --------- Run | Yrd Mat Min Exi Min Mat Total 1017 | 56 161 92 268 209 231 Wait 20 | . . . . 6 14 Move 944 | 50 143 92 267 200 192 Hop . | . . . . . . Pick Up 4 | . 3 . . . 1 Fast Attach 16 | 5 2 . 1 1 7 Attach 2 | . . . . . 2 Detach . | . . . . . . Swap 1 | . . . . . 1 Drop 6 | . 2 . . 1 3 Fire 18 | . 10 . . . 8 Melee . | . . . . . . Ram 1 | . . . . . 1 Kick 5 | 1 1 . . 1 2 Crush . | . . . . . . Escape Stasis . | . . . . . . Rewire . | . . . . . . Trap . | . . . . . . Miscellaneous . | . . . . . . Route ------- -11/Scrapyard -10/Materials (discovered 2 exits: [*Mat] / [*Min]) -10/Mines -10/Exiles -9/Mines -8/Materials (discovered 1 exit: Fac) History --------- Turn | Location | Event 5 | -11/Scrapyard | Discovered new exit (range 15) 67 | -11/Scrapyard | Entered Materials 167 | -10/Materials | Discovered new exit (range 9) 253 | -10/Materials | Discovered new exit (range 14) 275 | -10/Materials | Entered Mines 278 | -10/Mines | Assembled infested the area 293 | -10/Mines | Met a Derelict bent on vengeance 307 | -10/Mines | Learned 2 Materials zone layouts 315 | -10/Mines | Build established: Mutant 377 | -10/Mines | Deemed a non-threat by the Exiles lab entrance 379 | -10/Mines | Discovered new exit (range 5) 386 | -10/Mines | Entered Exiles 419 | -10/Exiles | Met 8R-AWN 438 | -10/Exiles | Met EX-HEX 490 | -10/Exiles | Met EX-BIN 506 | -10/Exiles | Aligned with FarCom system 508 | -10/Exiles | Given EX-Vault access code 540 | -10/Exiles | Opened EX-Vault 551 | -10/Exiles | Found 0b10 Alert Chip 578 | -10/Exiles | Warned to stay clear of 0b10 Research branches 626 | -10/Exiles | Met EX-DEC 683 | -10/Exiles | Discovered new exit (range 14) 708 | -10/Exiles | Left Exiles lab with 0b10 Alert Chip 708 | -10/Exiles | Entered Mines 731 | -9/Mines | Received a Rocket Launcher from a helpful Derelict 874 | -9/Mines | Learned 2 Materials zone layouts 940 | -9/Mines | Discovered new exit (range 11) 958 | -9/Mines | Entered Materials 958 | -8/Materials | Evolved 4 slots: Utility x2, Weapon x2 959 | -8/Materials | Identified exit to Factory 1279 | -8/Materials | Build established: Skirmisher 1312 | -8/Materials | Core integrity fell below 50% 1314 | -8/Materials | Destroyed by H-61 Shepherd via exploding Nuclear Reactor Last Messages --------------- Rocket Launcher destroyed. K-01 Serf collects debris. The unstable cave ceiling collapses. Nuclear Core destroyed. System Shield destroyed. Knocked back. K-01 Serf collects debris. Acquired 11 matter. K-01 Serf collects debris. The unstable cave ceiling collapses. Knocked back. K-01 Serf collects debris. Slammed into K-01 Serf. K-01 Serf collects debris. K-01 Serf destroyed. The unstable cave ceiling collapses. Nuclear Reactor explodes. K-01 Serf destroyed. U-05 Engineer destroyed. Nuclear Reactor explodes. Map ----- +----------------------------------------------------+ | ?????# #???????????????????????????????????????? | | ?????# #???????????????????????????????????????? | | ?????# #???????????????????????????????????????? | | ?????# #???????????????????????????????????????? | | ?????# #?????????????????? ????????????????????? | | ?????# #####?????????? ## #?????????????????# | | ?????# ## ##????????# #?????????????????# | | ##???# #####??? [ ?????????????#### | | #???# ##### #### % ????????????? # | | ##### = [* ! [[%[= # ???????????? # | | %=% [! !%* Y[ ???????????? + | | #####* ! [% [ = [! ????????????? # | | #???##+ # #[ ! %! ##???????????? # | | ##?# | # [ ! #??????????? # | | ???# """# "###????????#### | | ???# """# ggggH ][ ????????#### | | ???# """# g ][ ??????? | | ##?# + ""g ] ???????##### | | !#?# """# T ] #??????###?? | | #?# """# #?????? #?? | | #?# """ % = #?????? #?? | | "#?# a #?????? ### | | "#?########## !!!#???g?? ## | | ?######???## !!!#?????? ## | | ## #???# !!!#?????? ## | | #???##k @ #?????? ## | | #????# % ! #?????? ## | | #????# """ #?????? ## | | # #????# """ u !#??????##### | | ## ##????+ """ g ????? | | !#? #???? # a ga ?????? | | !#?? #??? # * g ?????? | | ##??? #?????# %! #####+##??????## | | ??????#?????################ #??????????????# | | ???????????????????????????? #?????????????## | | ???????????????????????????? #????????????? | | ?????????????????s?????????? #????????????? | | ????????????????????????????? #????????????? | | ???????????????s?s??????????? #????????????? | | ????????????????????????????? ??????????????? | | ????????????????????????????????????????????? | | ?????????????????????????????????????????????## | | ?????????????????????????????????????????????## | | ????????????????????????????????????????????? | | ????????????????????????????????????????????? | | ?????????????????????????????????????????????# | | ?????????????????????????????????????????????##### | | ?????????????????????????????????????????????????# | | ?????????????????????????????????????????????????# | | ?????????????????????????????????????????????????# | +----------------------------------------------------+ Best States ------------- Heat Dissipation 45 Energy Generation 14 Energy Capacity 250 Matter Stores 300 Matter Capacity 300 Sight Range 16 Terrain Scan Density 10 Armor Coverage 150 Evasion (%) 55 Defensive Hacking 10 Item Schematics ----------------- None Robot Schematics ------------------ None Fabricated ------------ Nothing Alien Tech Used ----------------- None Achievements -------------- None Challenges ------------ None Game ------ Seed SmartbombDroneShielding Manual? 0 Play Time 00:19:10 Cumulative 42.6 hours Start 2024.07.21 @ 06:42:38 End 2024.07.22 @ 13:54:01 Sessions 3 Manual Loads 0 Difficulty Rogue Special Mode None Game No. 92 Rogue 22 Adventurer 70 Explorer 0 Win Type - Total 0 Types 0/0/0/0/0/0/0/0/0 Lore% 32 Gallery% 34 Achievement% 29 Wizard Run 0 Options --------- Layout 1 ASCII 0 Keyboard 0 Movement Arrows Keybinds 0 Fullscreen 1 Font 24/Smallcaps Map View 50x35 Zoom Use 0% Tactical HUD 0 Map Filters NONE Filters NONE Steam 1 RUN: 91138910-57e4-4b6d-af2b-f09ce21d576e